bitfinex/quotes_BTCUSD_20251201
["timestamp","ask_amount","ask_price","bid_price","bid_amount"]
[1764601175190,0.02534374,86181.0,86180.0,0.00051745]
[1764601175396,0.00049,86181.0,86180.0,0.00051745]
[1764601175602,0.00049,86181.0,86180.0,0.00179585]
[1764601177355,0.0495,86181.0,86180.0,0.00179585]
[1764601178298,0.01160321,86183.0,86180.0,0.00179585]
[1764601178447,0.00098,86181.0,86180.0,0.00051745]
[1764601180074,0.02474959,86189.0,86180.0,0.00051745]
[1764601180292,0.01160281,86186.0,86180.0,0.00051745]
[1764601180504,0.01160321,86183.0,86180.0,0.00051745]
[1764601180694,0.01160294,86185.0,86180.0,0.00051745]
[1764601180911,0.01160321,86183.0,86182.0,0.00121445]
[1764601181526,0.06159321,86183.0,86182.0,0.00121445]
[1764601181694,0.06110321,86183.0,86182.0,0.00121445]
[1764601184027,0.01160294,86185.0,86182.0,0.00121445]
[1764601184187,0.06061321,86183.0,86180.0,0.00051745]
[1764601184791,0.04642957,86188.0,86180.0,0.00051745]
[1764601184988,0.01160321,86183.0,86180.0,0.00051745]
[1764601195296,0.04130751,86182.0,86180.0,0.00051745]
[1764601195606,0.04130751,86182.0,86181.0,0.00124643]
[1764601195985,0.0414762,86182.0,86181.0,0.00124643]
[1764601196334,0.01160321,86183.0,86181.0,0.00124643]
[1764601196526,0.01160321,86183.0,86180.0,0.00051745]
[1764601196651,0.04149669,86181.0,86180.0,0.00051745]
[1764601196859,0.06639469,86181.0,86180.0,0.00051745]
[1764601197100,0.024898,86181.0,86180.0,0.00051745]
[1764601198377,0.024898,86181.0,86180.0,0.06383745]
[1764601198578,0.024898,86181.0,86180.0,0.08340045]
[1764601199295,0.024898,86181.0,86180.0,0.18038045]
[1764601199828,0.024898,86181.0,86180.0,0.18138045]
[1764601200395,0.03119696,86189.0,86180.0,0.50438045]
[1764601200605,0.04187,86222.0,86180.0,0.50438045]
[1764601200606,0.04156336,86215.0,86212.0,0.01159931]
[1764601200822,0.04156336,86221.0,86216.0,0.01159877]
[1764601201028,0.04156336,86222.0,86216.0,0.01043456]
[1764601201243,0.0115985,86218.0,86206.0,0.01160012]
[1764601201457,0.04187,86225.0,86204.0,0.01160038]
[1764601201458,0.04156336,86234.0,86231.0,0.01159675]
[1764601201675,0.06234666,86243.0,86218.0,0.323]
[1764601201676,0.01159568,86239.0,86223.0,0.06252299]
[1764601201885,0.00011699,86234.0,86229.0,0.01159702]
[1764601202118,0.00011699,86234.0,86231.0,0.01159675]
[1764601202293,0.00011699,86234.0,86224.0,0.01374415]
[1764601202294,0.00011699,86234.0,86225.0,0.04635]
[1764601202802,0.01159675,86231.0,86225.0,0.04635]
[1764601202973,0.01159729,86227.0,86220.0,0.01159823]
[1764601203256,0.00011699,86234.0,86230.0,0.01159689]
[1764601203459,0.00011699,86234.0,86233.0,0.06332]
[1764601203669,0.00011699,86234.0,86231.0,0.01159675]
[1764601204300,0.00011699,86234.0,86230.0,0.01159689]
[1764601204483,0.00011699,86234.0,86225.0,0.01159756]
[1764601204712,0.01159675,86231.0,86226.0,0.01159743]
[1764601205132,0.01171334,86234.0,86203.0,0.14333]
[1764601205133,0.00805,86227.0,86203.0,0.14333]
[1764601205337,0.011602,86192.0,86180.0,0.0004]
[1764601205566,0.323,86212.0,86180.0,0.0004]
[1764601205567,0.01159958,86210.0,86195.0,0.0116016]
[1764601205811,0.0116016,86195.0,86185.0,0.01160294]
[1764601206044,0.05801709,86219.0,86190.0,0.01160227]
[1764601206320,0.05801709,86219.0,86195.0,0.0116016]
[1764601206321,0.01160012,86206.0,86195.0,0.0116016]
[1764601206546,0.04002,86230.0,86221.0,0.0115981]
[1764601206757,0.04002,86230.0,86218.0,0.1212685]
[1764601206758,0.01159769,86224.0,86218.0,0.04635]
[1764601206979,0.01159877,86216.0,86208.0,0.04635]
[1764601207209,0.01159877,86216.0,86209.0,0.00695504]
[1764601207469,0.01159971,86209.0,86199.0,0.01160106]
[1764601207690,0.01159985,86208.0,86200.0,0.01160092]
[1764601207914,0.01159985,86208.0,86202.0,0.01160065]
[1764601208137,0.01159998,86207.0,86203.0,0.01160052]
[1764601208564,0.01160321,86183.0,86174.0,0.04635]
[1764601208771,0.01160321,86183.0,86169.0,0.04635]
[1764601208772,0.04002,86181.0,86180.0,0.00051745]
[1764601209152,0.323,86189.0,86180.0,0.00051745]
[1764601209153,0.05162254,86188.0,86180.0,0.00051745]
[1764601209358,0.99085408,86200.0,86180.0,0.00051745]
[1764601209359,0.00988,86198.0,86186.0,0.01160281]
[1764601209599,0.01160133,86197.0,86180.0,0.00051745]
[1764601209762,0.0116016,86195.0,86182.0,0.01160335]
[1764601209965,0.01160254,86188.0,86180.0,0.00051745]
[1764601210202,0.01160227,86190.0,86183.0,0.01160321]
[1764601210402,0.01160281,86186.0,86183.0,0.01160321]
[1764601210991,0.01160321,86183.0,86180.0,0.00151745]
[1764601211191,0.03013,86184.0,86180.0,0.00151745]
[1764601211476,0.04173308,86184.0,86180.0,0.00051745]
[1764601211759,0.00049,86181.0,86180.0,0.00051745]
[1764601212257,0.0495,86181.0,86180.0,0.00051745]
[1764601212401,0.0495,86181.0,86180.0,0.00151745]
[1764601212982,0.0495,86181.0,86180.0,0.00051745]
[1764601213132,0.00049,86181.0,86180.0,0.00051745]
[1764601213343,0.06416518,86181.0,86180.0,0.00151745]
[1764601213555,0.06416518,86181.0,86180.0,0.00279585]
[1764601213751,0.0495,86181.0,86180.0,0.00279585]
[1764601214388,0.07430978,86181.0,86180.0,0.00179585]
[1764601214790,0.02480978,86181.0,86180.0,0.00179585]
[1764601214994,0.01160321,86183.0,86180.0,0.00179585]
[1764601215216,0.00098,86181.0,86180.0,0.00051745]
[1764601215498,0.03013,86184.0,86180.0,0.00051745]
[1764601215730,0.03013,86184.0,86181.0,0.01160348]
[1764601216391,0.04173254,86188.0,86181.0,0.01160348]
[1764601216594,0.01160267,86187.0,86181.0,0.01160348]
[1764601216812,0.03013,86188.0,86184.0,0.01160308]
[1764601217102,0.03013,86188.0,86185.0,0.01160294]
[1764601217728,0.03013,86188.0,86181.0,0.01160348]
[1764601218086,0.01160267,86187.0,86180.0,0.00051745]
[1764601218252,0.01160267,86187.0,86183.0,0.01160321]
[1764601218454,0.03013,86188.0,86185.0,0.01160294]
[1764601218659,0.01160267,86187.0,86181.0,0.01160348]
[1764601218879,0.01160267,86187.0,86183.0,0.01160321]
[1764601219053,0.03013,86188.0,86184.0,0.01160308]
[1764601219233,0.01160012,86206.0,86192.0,0.011602]
[1764601219439,0.01160012,86206.0,86185.0,0.01160294]
[1764601219440,0.0495,86185.0,86156.0,0.09609]
[1764601219639,0.0495,86185.0,86150.0,0.01039999]
[1764601219640,0.01160281,86186.0,86172.0,0.01160469]
[1764601219840,0.01160227,86190.0,86178.0,0.01160388]
[1764601219841,0.01160321,86183.0,86178.0,0.01160388]
[1764601220072,0.01160321,86183.0,86177.0,0.01160402]
[1764601220404,0.00049,86181.0,86172.0,0.01160469]
[1764601220612,0.00049,86181.0,86169.0,0.0116051]
[1764601220762,0.00049,86181.0,86180.0,0.00179585]
[1764601221343,0.0495,86181.0,86180.0,0.00179585]
[1764601221544,0.06257232,86181.0,86180.0,0.00179585]
[1764601221787,0.0495,86181.0,86180.0,0.00179585]
[1764601223358,0.01160321,86183.0,86180.0,0.00179585]
[1764601223562,0.01160321,86183.0,86180.0,0.00051745]
[1764601223563,0.00098,86181.0,86180.0,0.00051745]
[1764601223941,0.04951,86181.0,86180.0,0.00051745]
[1764601224149,0.01160321,86183.0,86180.0,0.00051745]
[1764601224322,0.00146,86181.0,86180.0,0.00051745]
[1764601225570,0.04952,86181.0,86180.0,0.00051745]
[1764601225768,0.00146,86181.0,86180.0,0.00051745]
[1764601226517,0.04952,86181.0,86180.0,0.00051745]
[1764601226860,0.00146,86181.0,86180.0,0.00051745]
[1764601227302,0.04952,86181.0,86180.0,0.00051745]
[1764601227535,0.06259432,86181.0,86180.0,0.00051745]
[1764601228271,0.07003432,86181.0,86180.0,0.00051745]
[1764601229901,0.05696,86181.0,86180.0,0.00051745]
[1764601230372,0.05696,86181.0,86180.0,0.00179585]
[1764601231496,2.44248299,86181.0,86180.0,0.00179585]
[1764601231717,2.46733548,86181.0,86180.0,0.00179585]
[1764601232113,2.50889884,86181.0,86180.0,0.00179585]
[1764601232331,2.39737249,86181.0,86154.0,0.01040297]
[1764601232543,0.03496,86155.0,86154.0,0.00039165]
[1764601233135,0.08469,86155.0,86154.0,0.00039165]
[1764601233341,0.08469,86155.0,86100.0,1.00105407]
[1764601233342,0.01161237,86115.0,86100.0,0.0002]
[1764601233604,0.06252299,86154.0,86112.0,0.00021733]
[1764601233605,0.01009,86113.0,86112.0,0.00021733]
[1764601233738,0.01704,86113.0,86112.0,0.00021733]
[1764601234780,0.02484844,86120.0,86114.0,0.01161251]
[1764601234781,0.0096,86119.0,86114.0,0.01161251]
[1764601235152,0.0096,86119.0,86116.0,0.01161224]
[1764601236294,0.00744,86126.0,86123.0,0.0116113]
[1764601236806,0.38101709,86129.0,86123.0,0.0116113]
[1764601236807,0.03496,86130.0,86127.0,0.01161076]
[1764601237239,0.0495,86128.0,86124.0,0.01161116]
[1764601237444,0.0495,86128.0,86125.0,0.01161103]
[1764601237994,0.0495,86128.0,86120.0,0.0116117]
[1764601237995,0.99085408,86150.0,86131.0,0.01161022]
[1764601238207,0.02483595,86149.0,86137.0,0.01160941]
[1764601238422,0.05801709,86146.0,86137.0,0.01160941]
[1764601238666,0.05801709,86146.0,86144.0,0.23216824]
[1764601238865,0.00744,86151.0,86143.0,0.24377773]
[1764601238866,0.03496,86155.0,86153.0,0.23214513]
[1764601239075,0.00049,86154.0,86145.0,0.00111932]
[1764601239246,0.00049,86146.0,86139.0,0.01160914]
[1764601239389,0.011609,86140.0,86135.0,0.01160968]
[1764601239591,0.23217629,86142.0,86136.0,0.01160954]
[1764601239791,0.24378715,86141.0,86136.0,0.01172687]
[1764601240022,0.01160914,86139.0,86136.0,0.00011733]
[1764601240305,0.03604,86137.0,86136.0,0.00011733]
[1764601240725,0.08457,86137.0,86136.0,0.00011733]
[1764601241289,0.03604,86137.0,86136.0,0.00011733]
[1764601241649,0.08457,86137.0,86136.0,0.00011733]
[1764601241847,0.08457,86137.0,86136.0,0.00111733]
[1764601242065,0.03604,86137.0,86136.0,0.00111733]
[1764601243449,0.00744,86150.0,86148.0,0.01160793]
[1764601243751,0.00744,86150.0,86149.0,0.23215499]
[1764601244195,0.35796,86155.0,86151.0,0.24375792]
[1764601244395,0.03496,86155.0,86152.0,0.01160739]
[1764601244613,0.03496,86155.0,86152.0,0.24375242]
[1764601244797,0.03496,86155.0,86151.0,0.24375756]
[1764601245001,0.03496,86155.0,86149.0,0.01160779]
[1764601245002,0.01160712,86154.0,86149.0,0.01160779]
[1764601245201,0.04656698,86155.0,86151.0,0.01160752]
[1764601245399,0.04656698,86155.0,86148.0,0.01160793]
[1764601245620,0.23214876,86152.0,86149.0,0.2437634]
[1764601245938,0.01160766,86150.0,86146.0,0.23216301]
[1764601246170,0.2437588,86151.0,86146.0,0.23216301]
[1764601246171,0.2437588,86151.0,86148.0,0.01160793]
[1764601246402,0.03496,86155.0,86153.0,0.23214426]
[1764601246602,0.24159595,86175.0,86163.0,0.0116059]
[1764601246826,0.00744,86170.0,86164.0,0.2321155]
[1764601247013,0.23954156,86170.0,86165.0,0.243718]
[1764601247222,0.01160537,86167.0,86158.0,0.01160658]
[1764601247464,0.24372487,86163.0,86159.0,0.24373502]
[1764601247665,0.0116055,86166.0,86161.0,0.24372764]
[1764601247935,0.23212627,86160.0,86159.0,0.00011733]
[1764601248141,0.68798724,86160.0,86159.0,0.00011733]
[1764601248338,0.68700724,86160.0,86159.0,0.00011733]
[1764601248899,0.69444724,86160.0,86159.0,0.00011733]
[1764601249104,0.69542724,86160.0,86159.0,0.00011733]
[1764601249772,0.52687874,86160.0,86159.0,0.00011733]
[1764601250384,0.51943874,86160.0,86159.0,0.00011733]
[1764601250570,0.02485388,86160.0,86159.0,0.00011733]
[1764601250766,0.01160564,86165.0,86159.0,0.01172377]
[1764601250972,0.02485388,86170.0,86167.0,0.01160537]
[1764601251195,0.01160321,86183.0,86172.0,0.24369758]
[1764601251373,0.01160388,86178.0,86171.0,0.01160483]
[1764601251575,0.25111931,86179.0,86174.0,0.24369289]
[1764601251576,0.27597346,86179.0,86174.0,0.24369289]
[1764601251780,0.01160429,86175.0,86168.0,0.01160523]
[1764601251978,0.01160429,86175.0,86060.0,0.2]
[1764601251979,0.23210875,86167.0,86161.0,0.01160617]
[1764601252216,0.23210875,86167.0,86159.0,0.01172377]
[1764601252217,0.0116059,86163.0,86159.0,0.00011733]
[1764601252421,0.0116059,86163.0,86160.0,0.23212627]
[1764601252594,0.23211813,86165.0,86160.0,0.24373236]
[1764601252595,0.2321159,86164.0,86160.0,0.24373236]
[1764601252802,0.01160469,86172.0,86165.0,0.23211249]
[1764601253160,0.01160227,86190.0,86184.0,0.01160308]
[1764601253313,0.01160294,86185.0,86179.0,0.04968]
[1764601253639,0.01160335,86182.0,86179.0,0.04968]
[1764601253782,0.2320724,86180.0,86179.0,0.04968]
[1764601253985,0.2320724,86180.0,86174.0,0.001]
[1764601253986,0.0495,86180.0,86168.0,0.01160523]
[1764601254220,0.01160402,86177.0,86173.0,0.24369466]
[1764601254431,0.01160348,86181.0,86173.0,0.24369466]
[1764601254432,0.2436757,86181.0,86177.0,0.24368421]
[1764601254680,0.05801709,86189.0,86177.0,0.24368421]
[1764601254681,0.00744,86180.0,86179.0,0.23207509]
[1764601254823,0.05801709,86189.0,86185.0,0.24365973]
[1764601254824,0.02487737,86189.0,86185.0,0.24365973]
[1764601255028,0.02487737,86198.0,86186.0,0.01160281]
[1764601255206,0.02487737,86198.0,86181.0,0.06191]
[1764601255207,0.05801709,86205.0,86198.0,0.01160119]
[1764601255410,0.00744,86205.0,86203.0,0.23200952]
[1764601255622,0.25104471,86206.0,86203.0,0.2320101]
[1764601255861,0.323,86204.0,86202.0,0.01160065]
[1764601256069,0.0003902,86206.0,86205.0,0.2320051]
[1764601256284,0.0003902,86206.0,86203.0,0.01160052]
[1764601256285,0.0003902,86206.0,86204.0,0.23200689]
[1764601256502,0.01160025,86205.0,86200.0,0.01160092]
[1764601256640,0.01199032,86206.0,86201.0,0.24361665]
[1764601256989,0.01160025,86205.0,86202.0,0.01160065]
[1764601257195,0.23200817,86204.0,86201.0,0.24361665]
[1764601257430,0.01160025,86205.0,86201.0,0.24361665]
[1764601257605,0.0003902,86206.0,86201.0,0.01160079]
[1764601257805,0.01199032,86206.0,86201.0,0.04441119]
[1764601258004,0.24360927,86204.0,86200.0,0.2436175]
[1764601258236,0.01199032,86206.0,86205.0,0.06191]
[1764601258237,0.0003902,86206.0,86205.0,0.06191]
[1764601258776,0.0003902,86206.0,86205.0,0.15213]
[1764601260407,0.0003902,86206.0,86205.0,0.53765299]
[1764601260581,2e-07,86206.0,86205.0,0.53865299]
[1764601260791,0.0115946,86247.0,86239.0,0.01159568]
[1764601260792,0.02482493,86247.0,86239.0,0.01159568]
[1764601260994,0.00011704,86247.0,86245.0,0.2318957]
[1764601261392,0.00011704,86247.0,86235.0,0.04968]
[1764601261594,0.00011704,86247.0,86244.0,0.011595]
[1764601261910,0.00011704,86247.0,86246.0,0.06191]
[1764601262514,0.00011704,86247.0,86241.0,0.01159541]
[1764601262515,0.01159474,86246.0,86241.0,0.01159541]
[1764601262718,0.23190512,86243.0,86235.0,0.28160182]
[1764601262995,0.24350178,86242.0,86236.0,0.23192021]
[1764601263197,0.011595,86244.0,86241.0,0.01159541]
[1764601263371,0.01159474,86246.0,86235.0,0.04968]
[1764601263553,0.01159568,86239.0,86235.0,0.04968]
[1764601263751,0.23192058,86237.0,86235.0,0.04968]
[1764601263975,0.01159568,86239.0,86235.0,0.06227621]
[1764601264153,0.01159393,86252.0,86237.0,0.01159595]
[1764601264511,0.23191721,86238.0,86235.0,0.06127621]
[1764601264810,0.24349779,86244.0,86239.0,0.01159568]
[1764601264959,0.00011704,86247.0,86244.0,0.24349377]
[1764601265159,0.00011704,86247.0,86246.0,0.06191]
[1764601265361,0.00011704,86247.0,86246.0,0.15213]
[1764601265562,0.00011704,86247.0,86246.0,0.21014709]
[1764601265761,0.00011704,86247.0,86246.0,0.26735596]
[1764601266603,0.00011704,86247.0,86246.0,0.06191]
[1764601266838,0.00011704,86247.0,86235.0,0.04968]
[1764601266839,0.23191459,86239.0,86235.0,0.04968]
[1764601266994,0.23191459,86239.0,86190.0,0.99085408]
[1764601266995,0.23198326,86214.0,86212.0,0.09022]
[1764601267172,0.23198895,86211.0,86204.0,0.09022]
[1764601267374,0.01159877,86216.0,86212.0,0.01159931]
[1764601267583,0.01159877,86216.0,86203.0,0.01160052]
[1764601267584,0.01159944,86211.0,86203.0,0.01160052]
[1764601267783,0.01159877,86216.0,86211.0,0.01159944]
[1764601267997,0.01159971,86209.0,86202.0,0.24361242]
[1764601268200,0.00011695,86209.0,86204.0,0.01160038]
[1764601268604,0.01171666,86209.0,86202.0,0.01160065]
[1764601268824,0.01171666,86209.0,86203.0,0.01160052]
[1764601268825,0.00011695,86209.0,86203.0,0.01160052]
[1764601269067,0.00011695,86209.0,86207.0,0.23199867]
[1764601269517,0.00011695,86209.0,86204.0,0.01160038]
[1764601269725,0.00011695,86209.0,86177.0,0.46416014]
[1764601269726,0.01160012,86206.0,86196.0,0.01160146]
[1764601269903,0.59137751,86208.0,86197.0,0.06128133]
[1764601270104,0.01160038,86204.0,86197.0,0.04968]
[1764601270335,0.01159998,86207.0,86201.0,0.01160079]
[1764601270565,0.24360636,86205.0,86202.0,0.01160065]
[1764601270765,0.01160012,86206.0,86202.0,0.01160065]
[1764601270985,0.24360336,86206.0,86202.0,0.01160065]
[1764601271113,0.24360336,86206.0,86201.0,0.24361551]
[1764601271114,0.01160025,86205.0,86201.0,0.01160079]
[1764601271516,0.01160025,86205.0,86202.0,0.23201074]
[1764601271649,0.59137751,86208.0,86202.0,0.23201074]
[1764601271853,0.23200303,86206.0,86203.0,0.24360927]
[1764601272056,0.23200303,86206.0,86198.0,0.00844]
[1764601272057,0.01160079,86201.0,86198.0,0.00844]
[1764601272278,0.00942,86202.0,86198.0,0.25105933]
[1764601272482,0.00942,86202.0,86199.0,0.01160106]
[1764601272814,0.59137751,86208.0,86203.0,0.23201048]
[1764601273017,0.59137751,86208.0,86198.0,0.00744]
[1764601273018,0.01160012,86206.0,86198.0,0.00744]
[1764601273179,0.23200858,86204.0,86200.0,0.01160092]
[1764601273355,0.01160038,86204.0,86201.0,0.2436161]
[1764601273878,0.24360876,86204.0,86201.0,0.01160079]
[1764601274079,0.24360876,86204.0,86201.0,0.24361647]
[1764601274680,0.23201352,86202.0,86200.0,0.001]
[1764601275085,0.03496,86201.0,86200.0,0.001]
[1764601275285,0.03545,86201.0,86200.0,0.001]
[1764601275508,0.01160187,86193.0,86189.0,0.0190424]
[1764601275674,0.23204579,86190.0,86185.0,0.04968]
[1764601275870,0.23203348,86195.0,86191.0,0.01160213]
[1764601276071,0.59137751,86199.0,86194.0,0.23203471]
[1764601276319,0.01160052,86203.0,86198.0,0.01160119]
[1764601276520,0.24361759,86201.0,86197.0,0.01160133]
[1764601276862,0.24361759,86201.0,86197.0,0.24362692]
[1764601277036,0.01160119,86198.0,86191.0,0.01160213]
[1764601277270,0.01160119,86198.0,86187.0,0.00744]
[1764601277271,0.01160146,86196.0,86187.0,0.00744]
[1764601277454,0.01160146,86196.0,86190.0,0.23204385]
[1764601277455,0.23203621,86194.0,86190.0,0.23204385]
[1764601277676,0.23203621,86194.0,86190.0,0.24364612]
[1764601277816,0.23203783,86193.0,86191.0,0.01160213]
[1764601278068,0.24363794,86194.0,86191.0,0.23204244]
[1764601278268,0.24363794,86194.0,86186.0,0.01160281]
[1764601278269,0.01160038,86204.0,86197.0,0.01160133]
[1764601278473,0.0116016,86195.0,86183.0,0.01160321]
[1764601278675,0.01160267,86187.0,86183.0,0.01160321]
[1764601278888,0.04439,86186.0,86184.0,0.23205999]
[1764601279200,0.23203946,86193.0,86191.0,0.001]
[1764601279585,0.24364133,86193.0,86189.0,0.24365006]
[1764601279785,0.24364662,86191.0,86158.0,0.46426279]
[1764601280118,0.8350267,86190.0,86187.0,0.01160267]
[1764601280424,0.01160227,86190.0,86187.0,0.24365501]
[1764601280624,0.24364998,86190.0,86187.0,0.24365501]
[1764601280822,0.24364998,86190.0,86189.0,0.001]
[1764601281284,0.31798057,86190.0,86189.0,0.001]
[1764601281487,0.67190048,86190.0,86189.0,0.001]
[1764601281720,0.68266616,86190.0,86189.0,0.001]
[1764601282079,0.55509125,86173.0,86152.0,0.01160739]
[1764601282333,0.55509125,86173.0,86149.0,0.01160779]
[1764601282334,0.69487893,86173.0,86153.0,0.01160725]
[1764601282475,0.69487893,86173.0,86157.0,0.0492]
[1764601282681,0.57961184,86173.0,86162.0,0.01160604]
[1764601282989,0.57961184,86173.0,86160.0,0.01160631]
[1764601283201,0.58010184,86173.0,86172.0,0.00064596]
[1764601284235,0.62911184,86173.0,86172.0,0.00064596]
[1764601285595,2.62911184,86173.0,86172.0,0.00064596]
[1764601285794,2.73299882,86173.0,86172.0,0.00064596]
[1764601286011,2.69163483,86173.0,86172.0,0.00064596]
[1764601286995,0.62942184,86173.0,86172.0,0.00064596]
[1764601287197,0.00744,86173.0,86172.0,0.00064596]
[1764601287638,0.05801709,86181.0,86172.0,0.01225065]
[1764601287843,0.23208374,86176.0,86172.0,0.24434386]
[1764601288108,0.23208204,86177.0,86173.0,0.23209117]
[1764601288228,0.01160429,86175.0,86172.0,0.00064596]
[1764601288632,0.01160429,86175.0,86173.0,0.23209098]
[1764601288940,0.01160429,86175.0,86172.0,0.00064596]
[1764601289149,0.23208187,86177.0,86174.0,0.23208786]
[1764601289347,0.01160415,86176.0,86172.0,0.24434358]
[1764601289661,0.01160415,86176.0,86173.0,0.23209079]
[1764601289846,0.01160415,86176.0,86174.0,0.23208842]
[1764601290048,0.24367353,86181.0,86174.0,0.01160442]
[1764601290255,0.00744,86182.0,86177.0,0.01160402]
[1764601290434,0.00744,86182.0,86180.0,0.2320724]
[1764601290929,0.00744,86182.0,86181.0,0.23206971]
[1764601291154,0.01160173,86194.0,86189.0,0.0116024]
[1764601291363,0.03098715,86210.0,86204.0,0.01160038]
[1764601291568,0.00744,86208.0,86204.0,0.01160038]
[1764601291775,0.08282394,86209.0,86206.0,0.01160012]
[1764601291978,0.00744,86215.0,86214.0,0.24357892]
[1764601292395,0.03554,86220.0,86217.0,0.24356896]
[1764601292603,0.03565312,86220.0,86217.0,0.01159864]
[1764601292813,0.01159864,86217.0,86207.0,0.01159998]
[1764601293017,0.0115985,86218.0,86214.0,0.01159904]
[1764601293195,0.2435726,86217.0,86214.0,0.01159904]
[1764601293432,0.01159837,86219.0,86216.0,0.23197528]
[1764601293651,0.00011312,86220.0,86218.0,0.23196778]
[1764601293867,0.00011312,86220.0,86219.0,0.15211]
[1764601294073,0.00011312,86220.0,86218.0,0.23196778]
[1764601294275,0.00011312,86220.0,86218.0,0.30843755]
[1764601294700,0.00011312,86220.0,86219.0,0.15211]
[1764601295360,0.00011312,86220.0,86219.0,0.21012709]
[1764601295509,0.00011312,86220.0,86219.0,0.21756709]
[1764601295712,0.00011312,86220.0,86219.0,0.21856709]
[1764601295890,0.00011312,86220.0,86219.0,0.33379305]
[1764601296091,0.00011312,86220.0,86219.0,0.18372596]
[1764601296277,0.00011312,86220.0,86219.0,0.16055]
[1764601296480,0.00011312,86220.0,86219.0,0.001]
[1764601297101,0.00060312,86220.0,86219.0,0.001]
[1764601297622,0.0115989,86215.0,86209.0,0.01159971]
[1764601297824,0.24357865,86215.0,86212.0,0.01159931]
[1764601298046,0.00011312,86220.0,86214.0,0.01159904]
[1764601298232,0.00011312,86220.0,86219.0,0.06647]
[1764601298609,0.00011312,86220.0,86219.0,0.16478]
[1764601299010,0.00011312,86220.0,86219.0,0.48778]
[1764601299732,0.00011312,86220.0,86219.0,0.16578]
[1764601299945,0.00011312,86220.0,86219.0,0.27862676]
[1764601301732,0.00011312,86220.0,86219.0,0.001]
[1764601301936,0.00060312,86220.0,86219.0,0.001]
[1764601302224,0.04961312,86220.0,86219.0,0.001]
[1764601302369,0.00060312,86220.0,86219.0,0.001]
[1764601302573,0.01159944,86211.0,86203.0,0.06080052]
[1764601302774,0.24359137,86210.0,86206.0,0.01160012]
[1764601303135,0.24359137,86210.0,86203.0,0.0492]
[1764601303136,0.23200779,86204.0,86203.0,0.0492]
[1764601303337,0.23200779,86204.0,86200.0,0.01160092]
[1764601303631,0.23200359,86206.0,86203.0,0.01160052]
[1764601303834,0.23198424,86213.0,86208.0,0.01159985]
[1764601304071,0.23199235,86210.0,86207.0,0.2319991]
[1764601304276,0.23199299,86210.0,86206.0,0.24360203]
[1764601304490,0.23199299,86210.0,86206.0,0.01160012]
[1764601304692,0.23199717,86208.0,86206.0,0.01160012]
[1764601304896,0.23198626,86212.0,86207.0,0.24359897]
[1764601305198,0.05801709,86216.0,86207.0,0.01259998]
[1764601305401,0.23199701,86209.0,86207.0,0.001]
[1764601305809,0.01159958,86210.0,86204.0,0.01160038]
[1764601305810,0.24360203,86207.0,86204.0,0.01160038]
[1764601306019,0.23200248,86206.0,86202.0,0.24361271]
[1764601306216,0.23199728,86208.0,86205.0,0.24360503]
[1764601306419,0.23199987,86207.0,86205.0,0.01160025]
[1764601307086,0.23202125,86199.0,86198.0,0.0456]
[1764601307290,0.0116016,86195.0,86190.0,0.01160227]
[1764601307671,0.63576751,86200.0,86194.0,0.01160173]
[1764601308019,0.23202497,86198.0,86194.0,0.24363635]
[1764601308239,0.23202497,86198.0,86195.0,0.24363325]
[1764601308436,0.23202497,86198.0,86196.0,0.01160146]
[1764601308437,0.23202468,86198.0,86196.0,0.01160146]
[1764601308637,0.23202468,86198.0,86195.0,0.24363325]
[1764601309047,0.23204446,86191.0,86179.0,0.00744]
[1764601309260,0.2320374,86194.0,86189.0,0.24364942]
[1764601309261,0.2320374,86193.0,86189.0,0.24364942]
[1764601309461,0.2320374,86193.0,86190.0,0.23204536]
[1764601309634,0.23203847,86193.0,86190.0,0.2436477]
[1764601309839,0.011602,86192.0,86187.0,0.2436539]
[1764601310014,0.011602,86192.0,86185.0,0.24366054]
[1764601310015,0.01160187,86193.0,86185.0,0.24365928]
[1764601310218,0.00011306,86193.0,86188.0,0.06080254]
[1764601310422,0.00011306,86193.0,86190.0,0.23204485]
[1764601310641,0.23204128,86192.0,86188.0,0.29285329]
[1764601310833,0.23215144,86193.0,86189.0,0.0116024]
[1764601311154,0.23204817,86189.0,86188.0,0.0502]
[1764601311554,0.23204817,86189.0,86188.0,0.0492]
[1764601311942,0.01160213,86191.0,86189.0,0.001]
[1764601312137,0.24364507,86191.0,86189.0,0.001]
[1764601312456,0.01171493,86193.0,86192.0,0.23204009]
[1764601312457,0.00011306,86193.0,86192.0,0.23204009]
[1764601314086,0.00011306,86193.0,86192.0,0.38921009]
[1764601314558,0.00011306,86193.0,86192.0,0.39021009]
[1764601315919,0.00011306,86193.0,86192.0,0.38921009]
[1764601317005,0.00011306,86193.0,86192.0,0.15717]
[1764601317210,0.00011306,86193.0,86192.0,0.06424]
[1764601317409,0.01160213,86191.0,86188.0,0.0492]
[1764601317611,0.24375233,86193.0,86192.0,0.001]
[1764601318374,0.24364478,86192.0,86188.0,0.0492]
[1764601318532,0.01160213,86191.0,86188.0,0.0502]
[1764601318733,0.28154817,86189.0,86188.0,0.001]
[1764601321756,0.01160429,86175.0,86172.0,0.00025576]
[1764601322206,0.01160388,86178.0,86174.0,0.2320866]
[1764601322420,0.2320731,86180.0,86177.0,0.01160402]
[1764601322635,0.2436738,86181.0,86177.0,0.24368413]
[1764601322796,0.2436738,86181.0,86177.0,0.01160402]
[1764601322797,0.01160348,86181.0,86177.0,0.01160402]
[1764601323006,0.00011306,86193.0,86188.0,0.29629086]
[1764601323007,0.02427278,86189.0,86188.0,0.29629086]
[1764601323208,0.00011306,86193.0,86188.0,0.29629086]
[1764601323209,0.00011306,86193.0,86192.0,0.23204009]
[1764601323447,0.00011306,86193.0,86192.0,0.35246009]
[1764601323657,0.00011306,86193.0,86192.0,0.44539009]
[1764601325217,0.00011306,86193.0,86192.0,0.44639009]
[1764601325345,0.00011306,86193.0,86192.0,0.56161605]
[1764601326491,0.00011306,86193.0,86192.0,0.28178009]
[1764601326694,0.00011306,86193.0,86192.0,0.43895009]
[1764601326860,0.01159904,86214.0,86213.0,0.04874]
[1764601327269,0.01159985,86208.0,86201.0,0.04874]
[1764601327470,0.01160119,86198.0,86187.0,0.01160267]
[1764601327667,0.24362592,86198.0,86194.0,0.24363532]
[1764601327881,0.24362197,86200.0,86194.0,0.24363532]
[1764601328234,0.23200509,86206.0,86200.0,0.06424]
[1764601328364,0.23200509,86206.0,86196.0,0.01160146]
[1764601328365,0.01160092,86200.0,86196.0,0.01160146]
[1764601328564,0.23202963,86196.0,86189.0,0.0116024]
[1764601328803,0.23202208,86199.0,86192.0,0.011602]
[1764601329032,0.01160106,86199.0,86195.0,0.23203116]
[1764601329169,0.03098715,86213.0,86205.0,0.01160025]
[1764601329519,0.01159796,86222.0,86213.0,0.01159917]
[1764601329680,0.24356625,86219.0,86214.0,0.24357992]